[Event "Late-Titled-Tuesday-Blitz-May-14-2024"]
[Site "Chess.com"]
[Date "2024.05.14"]
[Round "6"]
[White "HanSchut"]
[Black "djano"]
[Result "0-1"]
[WhiteElo "2370"]
[BlackElo "2539"]
[TimeControl "180+1"]
[EndTime "15:06:09 PDT"]
[Termination "djano won by resignation"]

1. e4 {[%clk 0:03:00.9]} 1... d5 {[%clk 0:02:59.2]} 2. exd5 {[%clk 0:03:01]}
2... Qxd5 {[%clk 0:02:58.4]} 3. Nc3 {[%clk 0:03:01.1]} 3... Qd8 {[%clk
0:02:58.3]} 4. d4 {[%clk 0:03:01.7]} 4... g6 {[%clk 0:02:58.7]} 5. Bf4 {[%clk
0:02:57.6]} 5... Bg7 {[%clk 0:02:58.4]} 6. d5 {[%clk 0:02:54.6]} 6... Nf6 {[%clk
0:02:55.7]} 7. Bb5+ {[%clk 0:02:50.1]} 7... Bd7 {[%clk 0:02:54.5]} 8. Nge2
{[%clk 0:02:48.9]} 8... c6 {[%clk 0:02:50.5]} 9. dxc6 {[%clk 0:02:46.1]} 9...
Nxc6 {[%clk 0:02:51.4]} 10. Nd4 {[%clk 0:02:34.2]} 10... Qb6 {[%clk 0:02:47.2]}
11. Be3 {[%clk 0:02:10.4]} 11... Qc7 {[%clk 0:02:45.9]} 12. Bxc6 {[%clk
0:02:00.8]} 12... Bxc6 {[%clk 0:02:44.6]} 13. O-O {[%clk 0:01:42.9]} 13... Rd8
{[%clk 0:02:43.5]} 14. Ndb5 {[%clk 0:01:36.2]} 14... Qe5 {[%clk 0:02:29.8]} 15.
Qe2 {[%clk 0:01:18.2]} 15... a6 {[%clk 0:02:16.3]} 16. f4 {[%clk 0:01:01.1]}
16... Qb8 {[%clk 0:02:10.1]} 17. Nd4 {[%clk 0:00:32]} 17... Bd7 {[%clk
0:02:10.1]} 18. f5 {[%clk 0:00:28.1]} 18... O-O {[%clk 0:02:07.1]} 19. fxg6
{[%clk 0:00:28.3]} 19... hxg6 {[%clk 0:02:08]} 20. h3 {[%clk 0:00:24.7]} 20...
b5 {[%clk 0:01:56.5]} 21. a3 {[%clk 0:00:23.9]} 21... Qb7 {[%clk 0:01:52.7]} 22.
Rad1 {[%clk 0:00:23.4]} 22... Ne4 {[%clk 0:01:51.8]} 23. Nxe4 {[%clk 0:00:23.2]}
23... Qxe4 {[%clk 0:01:52.7]} 24. Qf2 {[%clk 0:00:22.5]} 24... a5 {[%clk
0:01:46.3]} 25. c3 {[%clk 0:00:22.3]} 25... Bc8 {[%clk 0:01:42.9]} 26. Rde1
{[%clk 0:00:22]} 26... Qd5 {[%clk 0:01:42.3]} 27. Qe2 {[%clk 0:00:18.8]} 27...
Bb7 {[%clk 0:01:42.6]} 28. Rf2 {[%clk 0:00:18.1]} 28... b4 {[%clk 0:01:42]} 29.
axb4 {[%clk 0:00:17.5]} 29... axb4 {[%clk 0:01:42.9]} 30. c4 {[%clk 0:00:17.7]}
30... Qe4 {[%clk 0:01:40.8]} 31. Nb5 {[%clk 0:00:17.8]} 31... e6 {[%clk
0:01:29]} 32. b3 {[%clk 0:00:17.3]} 32... Rd3 {[%clk 0:01:26.3]} 33. Bc5 {[%clk
0:00:15.1]} 33... Qxe2 {[%clk 0:01:18.4]} 34. Rfxe2 {[%clk 0:00:16]} 34... Rc8
{[%clk 0:01:16.3]} 35. Bxb4 {[%clk 0:00:16.3]} 35... Rxb3 {[%clk 0:01:16.5]} 36.
Be7 {[%clk 0:00:11.6]} 36... Rxc4 {[%clk 0:01:09.9]} 37. Nd6 {[%clk 0:00:11.8]}
37... Rc7 {[%clk 0:01:06]} 38. Bd8 {[%clk 0:00:11.4]} 38... Rd7 {[%clk
0:01:03.2]} 39. Nxb7 {[%clk 0:00:10.9]} 39... Rbxb7 {[%clk 0:01:03.3]} 40. Bh4
{[%clk 0:00:11.1]} 40... Bc3 {[%clk 0:00:59.6]} 41. Rf1 {[%clk 0:00:10.9]} 41...
Bd4+ {[%clk 0:00:59.6]} 42. Bf2 {[%clk 0:00:11]} 42... Bg7 {[%clk 0:00:59.9]}
43. Be3 {[%clk 0:00:10.7]} 43... f5 {[%clk 0:00:59.7]} 44. Ref2 {[%clk
0:00:11.1]} 44... e5 {[%clk 0:00:59.3]} 45. Bg5 {[%clk 0:00:11.4]} 45... e4
{[%clk 0:00:58.7]} 46. h4 {[%clk 0:00:11.9]} 46... Bd4 {[%clk 0:00:58.5]} 47.
Kh2 {[%clk 0:00:10.5]} 47... Bxf2 {[%clk 0:00:58.2]} 48. Rxf2 {[%clk 0:00:11.4]}
48... Rd3 {[%clk 0:00:53.7]} 49. g3 {[%clk 0:00:10.9]} 49... e3 {[%clk 0:00:52]}
50. Re2 {[%clk 0:00:11]} 50... Rd2 {[%clk 0:00:52.6]} 51. Rxd2 {[%clk
0:00:09.5]} 51... exd2 {[%clk 0:00:53.5]} 52. Bxd2 {[%clk 0:00:09.9]} 52... Rb2
{[%clk 0:00:53.6]} 0-1

[Event "Late-Titled-Tuesday-Blitz-May-14-2024"]
[Site "Chess.com"]
[Date "2024.05.14"]
[Round "6"]
[White "Revan_2002"]
[Black "dealshark"]
[Result "1-0"]
[WhiteElo "2764"]
[BlackElo "2550"]
[TimeControl "180+1"]
[EndTime "15:06:11 PDT"]
[Termination "Revan_2002 won by resignation"]

1. Nf3 {[%clk 0:03:00.9]} 1... d5 {[%clk 0:02:59.9]} 2. g3 {[%clk 0:03:00.2]}
2... e6 {[%clk 0:02:59.9]} 3. Bg2 {[%clk 0:03:00.1]} 3... c5 {[%clk 0:03:00.5]}
4. O-O {[%clk 0:03:00]} 4... Nc6 {[%clk 0:03:00.9]} 5. c4 {[%clk 0:03:00]} 5...
Nf6 {[%clk 0:03:01.3]} 6. b3 {[%clk 0:02:53.2]} 6... Be7 {[%clk 0:03:00.9]} 7.
Bb2 {[%clk 0:02:52]} 7... O-O {[%clk 0:03:00.9]} 8. e3 {[%clk 0:02:46.8]} 8...
b6 {[%clk 0:02:58.5]} 9. Qe2 {[%clk 0:02:45.6]} 9... Bb7 {[%clk 0:02:58.7]} 10.
Rd1 {[%clk 0:02:40.8]} 10... Rc8 {[%clk 0:02:54.8]} 11. Nc3 {[%clk 0:02:29.9]}
11... d4 {[%clk 0:02:52.3]} 12. exd4 {[%clk 0:02:25]} 12... cxd4 {[%clk
0:02:43.8]} 13. Nb5 {[%clk 0:02:24.6]} 13... d3 {[%clk 0:02:37.6]} 14. Qf1
{[%clk 0:02:19.2]} 14... a6 {[%clk 0:02:24.7]} 15. Nbd4 {[%clk 0:02:09]} 15...
Nxd4 {[%clk 0:02:20.7]} 16. Nxd4 {[%clk 0:02:02.6]} 16... Bxg2 {[%clk 0:02:19]}
17. Qxg2 {[%clk 0:02:02]} 17... Qc7 {[%clk 0:02:01.3]} 18. Re1 {[%clk
0:01:36.6]} 18... Rfd8 {[%clk 0:02:00.1]} 19. Nf3 {[%clk 0:01:27]} 19... b5
{[%clk 0:01:42.6]} 20. Ne5 {[%clk 0:01:21.6]} 20... bxc4 {[%clk 0:01:24.6]} 21.
Nxc4 {[%clk 0:01:19.2]} 21... Rd5 {[%clk 0:01:18.1]} 22. Rac1 {[%clk 0:01:12.8]}
22... Qd8 {[%clk 0:01:07.4]} 23. Bc3 {[%clk 0:00:56.8]} 23... h6 {[%clk
0:01:07]} 24. Ne3 {[%clk 0:00:54]} 24... Rd7 {[%clk 0:01:04.9]} 25. Bxf6 {[%clk
0:00:46.4]} 25... Bxf6 {[%clk 0:01:04.6]} 26. Qe4 {[%clk 0:00:46.3]} 26... Rdc7
{[%clk 0:00:58.9]} 27. Rxc7 {[%clk 0:00:43.6]} 27... Rxc7 {[%clk 0:00:59.3]} 28.
Nc4 {[%clk 0:00:44]} 28... Qd7 {[%clk 0:00:49.2]} 29. Kg2 {[%clk 0:00:42]} 29...
g6 {[%clk 0:00:35.1]} 30. Re3 {[%clk 0:00:37.4]} 30... Qb5 {[%clk 0:00:27]} 31.
Rxd3 {[%clk 0:00:35.3]} 31... Kg7 {[%clk 0:00:26.7]} 32. Qf3 {[%clk 0:00:22.4]}
32... a5 {[%clk 0:00:23.8]} 33. Nd6 {[%clk 0:00:21.3]} 33... Qc6 {[%clk
0:00:19.3]} 34. Qxc6 {[%clk 0:00:19.1]} 34... Rxc6 {[%clk 0:00:19.8]} 35. Ne8+
{[%clk 0:00:20]} 35... Kf8 {[%clk 0:00:18.3]} 36. Nxf6 {[%clk 0:00:20.9]} 36...
Rc2 {[%clk 0:00:18.7]} 37. a4 {[%clk 0:00:19.9]} 37... Ke7 {[%clk 0:00:18]} 38.
Ng4 {[%clk 0:00:18.8]} 38... h5 {[%clk 0:00:17.6]} 39. Ne3 {[%clk 0:00:18.9]}
39... f5 {[%clk 0:00:16.3]} 40. Nxc2 {[%clk 0:00:18.5]} 1-0

[Event "Late-Titled-Tuesday-Blitz-May-14-2024"]
[Site "Chess.com"]
[Date "2024.05.14"]
[Round "6"]
[White "Sinquefield"]
[Black "Zhigalko_Sergei"]
[Result "0-1"]
[WhiteElo "2576"]
[BlackElo "2835"]
[TimeControl "180+1"]
[EndTime "15:06:13 PDT"]
[Termination "Zhigalko_Sergei won by checkmate"]

1. d4 {[%clk 0:02:15.2]} 1... Nf6 {[%clk 0:02:59.7]} 2. Nf3 {[%clk 0:02:15]}
2... e6 {[%clk 0:02:59.9]} 3. Bg5 {[%clk 0:02:15.3]} 3... h6 {[%clk 0:03:00]} 4.
Bh4 {[%clk 0:02:15.2]} 4... b6 {[%clk 0:02:59.3]} 5. Nbd2 {[%clk 0:02:15.6]}
5... Bb7 {[%clk 0:02:59.7]} 6. e3 {[%clk 0:02:16.2]} 6... Be7 {[%clk 0:02:59.9]}
7. Bd3 {[%clk 0:02:16.4]} 7... d6 {[%clk 0:03:00.5]} 8. O-O {[%clk 0:02:16.6]}
8... Nbd7 {[%clk 0:03:00.6]} 9. c3 {[%clk 0:02:17.2]} 9... O-O {[%clk
0:03:00.2]} 10. Re1 {[%clk 0:02:17.4]} 10... c5 {[%clk 0:02:54.7]} 11. Rc1
{[%clk 0:02:15.6]} 11... a6 {[%clk 0:02:53.8]} 12. e4 {[%clk 0:02:15.8]} 12...
Nh5 {[%clk 0:02:53.9]} 13. Bg3 {[%clk 0:02:10.2]} 13... b5 {[%clk 0:02:50.7]}
14. Bb1 {[%clk 0:02:09.6]} 14... Rc8 {[%clk 0:02:49.5]} 15. e5 {[%clk
0:02:04.9]} 15... Nxg3 {[%clk 0:02:45.8]} 16. hxg3 {[%clk 0:02:05.8]} 16... cxd4
{[%clk 0:02:44.6]} 17. cxd4 {[%clk 0:02:05.4]} 17... dxe5 {[%clk 0:02:35.4]} 18.
Nxe5 {[%clk 0:02:00.8]} 18... Nxe5 {[%clk 0:01:59.5]} 19. dxe5 {[%clk
0:01:59.6]} 19... Qd4 {[%clk 0:01:39.2]} 20. Nf3 {[%clk 0:01:39]} 20... Qxb2
{[%clk 0:01:26.9]} 21. Rxc8 {[%clk 0:01:37]} 21... Bxc8 {[%clk 0:01:27.5]} 22.
Qd3 {[%clk 0:01:35.7]} 22... g6 {[%clk 0:01:26.2]} 23. Nh4 {[%clk 0:01:24.4]}
23... Bxh4 {[%clk 0:00:44.7]} 24. gxh4 {[%clk 0:01:25.3]} 24... h5 {[%clk
0:00:44.9]} 25. Qg3 {[%clk 0:01:04.1]} 25... Qd2 {[%clk 0:00:30.8]} 26. Bxg6
{[%clk 0:00:42.8]} 26... Qxe1+ {[%clk 0:00:27.6]} 27. Kh2 {[%clk 0:00:43.4]}
27... Qd2 {[%clk 0:00:14.8]} 28. f4 {[%clk 0:00:34.8]} 28... Bb7 {[%clk
0:00:09.9]} 29. Be4+ {[%clk 0:00:33.9]} 29... Kh8 {[%clk 0:00:10.3]} 30. Bxb7
{[%clk 0:00:30]} 30... Rg8 {[%clk 0:00:10.5]} 31. Qf3 {[%clk 0:00:29.9]} 31...
Rg4 {[%clk 0:00:10.6]} 32. Qa3 {[%clk 0:00:16]} 32... Qxf4+ {[%clk 0:00:09.1]}
33. Kg1 {[%clk 0:00:14.2]} 33... Qd4+ {[%clk 0:00:09.1]} 34. Kh2 {[%clk
0:00:11.4]} 34... Rxh4+ {[%clk 0:00:08.7]} 35. Kg3 {[%clk 0:00:12]} 35... Qf4#
{[%clk 0:00:08.7]} 0-1

[Event "Late-Titled-Tuesday-Blitz-May-14-2024"]
[Site "Chess.com"]
[Date "2024.05.14"]
[Round "6"]
[White "wild3000"]
[Black "Mbneu"]
[Result "0-1"]
[WhiteElo "2478"]
[BlackElo "2268"]
[TimeControl "180+1"]
[EndTime "15:06:14 PDT"]
[Termination "Mbneu won by resignation"]

1. d4 {[%clk 0:02:52.3]} 1... Nf6 {[%clk 0:02:59.1]} 2. Nf3 {[%clk 0:02:52.1]}
2... c5 {[%clk 0:02:59]} 3. e3 {[%clk 0:02:51.4]} 3... g6 {[%clk 0:02:57.6]} 4.
Be2 {[%clk 0:02:51.3]} 4... cxd4 {[%clk 0:02:57.4]} 5. O-O {[%clk 0:02:52.2]}
5... dxe3 {[%clk 0:02:56.5]} 6. Bxe3 {[%clk 0:02:53.1]} 6... Bg7 {[%clk
0:02:56]} 7. c3 {[%clk 0:02:54]} 7... O-O {[%clk 0:02:55.3]} 8. Nbd2 {[%clk
0:02:53.3]} 8... d5 {[%clk 0:02:54.2]} 9. Re1 {[%clk 0:02:51.8]} 9... Nc6 {[%clk
0:02:52.1]} 10. Bf4 {[%clk 0:02:49.5]} 10... Bf5 {[%clk 0:02:47.4]} 11. Nb3
{[%clk 0:02:49.2]} 11... Ne4 {[%clk 0:02:45.7]} 12. Nbd4 {[%clk 0:02:46.4]}
12... Nxd4 {[%clk 0:02:42]} 13. cxd4 {[%clk 0:02:46.3]} 13... Rc8 {[%clk
0:02:39.8]} 14. Qb3 {[%clk 0:02:40.3]} 14... Qb6 {[%clk 0:02:38.9]} 15. Qxb6
{[%clk 0:02:38.8]} 15... axb6 {[%clk 0:02:38.4]} 16. Rac1 {[%clk 0:02:35.7]}
16... Rxc1 {[%clk 0:02:24.4]} 17. Rxc1 {[%clk 0:02:34.9]} 17... Rc8 {[%clk
0:02:23.8]} 18. Rxc8+ {[%clk 0:02:32]} 18... Bxc8 {[%clk 0:02:22.7]} 19. Bc7
{[%clk 0:02:31]} 19... Nd6 {[%clk 0:01:37.2]} 20. Bxb6 {[%clk 0:02:24.4]} 20...
Nc4 {[%clk 0:01:36.2]} 21. Bc5 {[%clk 0:02:17.1]} 21... Nxb2 {[%clk 0:01:31.1]}
22. Bxe7 {[%clk 0:02:15.1]} 22... Bg4 {[%clk 0:01:28.6]} 23. h3 {[%clk 0:02:12]}
23... Be6 {[%clk 0:01:26.7]} 24. Kf1 {[%clk 0:02:03.1]} 24... Bf8 {[%clk
0:01:25.7]} 25. Bxf8 {[%clk 0:01:57.6]} 25... Kxf8 {[%clk 0:01:26.6]} 26. Ke1
{[%clk 0:01:56.1]} 26... Nc4 {[%clk 0:01:21.2]} 27. Bxc4 {[%clk 0:01:46]} 27...
dxc4 {[%clk 0:01:20.6]} 28. Kd2 {[%clk 0:01:45.3]} 28... Ke7 {[%clk 0:01:19.9]}
29. Kc3 {[%clk 0:01:44.7]} 29... Kd6 {[%clk 0:01:19.2]} 30. Ng5 {[%clk
0:01:31.8]} 30... Bd5 {[%clk 0:01:14.8]} 31. f3 {[%clk 0:01:26.9]} 31... h6
{[%clk 0:01:11.8]} 32. Ne4+ {[%clk 0:01:26]} 32... Bxe4 {[%clk 0:01:08.1]} 33.
fxe4 {[%clk 0:01:25.8]} 33... b5 {[%clk 0:01:07.9]} 34. g4 {[%clk 0:01:20.2]}
34... f6 {[%clk 0:01:03.9]} 35. Kb4 {[%clk 0:01:16.5]} 35... Kc6 {[%clk
0:00:56.1]} 36. d5+ {[%clk 0:01:12.2]} 36... Kb6 {[%clk 0:00:50.3]} 37. a4
{[%clk 0:01:10.8]} 37... bxa4 {[%clk 0:00:50]} 38. Kxc4 {[%clk 0:01:09.7]} 38...
a3 {[%clk 0:00:46.3]} 39. Kb3 {[%clk 0:01:08.9]} 39... Kc5 {[%clk 0:00:46.4]}
40. h4 {[%clk 0:01:06.2]} 40... f5 {[%clk 0:00:45.5]} 41. exf5 {[%clk
0:00:59.1]} 41... gxf5 {[%clk 0:00:45.6]} 42. g5 {[%clk 0:00:56.5]} 42... hxg5
{[%clk 0:00:41.4]} 43. h5 {[%clk 0:00:55.8]} 43... f4 {[%clk 0:00:34.9]} 44. h6
{[%clk 0:00:55.9]} 44... f3 {[%clk 0:00:35.1]} 45. h7 {[%clk 0:00:56.3]} 45...
f2 {[%clk 0:00:35]} 46. h8=Q {[%clk 0:00:56.5]} 46... f1=Q {[%clk 0:00:34.7]}
47. Qe5 {[%clk 0:00:39.5]} 47... Qd3+ {[%clk 0:00:31.9]} 48. Ka2 {[%clk
0:00:37.3]} 48... Qxd5+ {[%clk 0:00:31.6]} 49. Qxd5+ {[%clk 0:00:30.3]} 49...
Kxd5 {[%clk 0:00:31.5]} 0-1

[Event "Late-Titled-Tuesday-Blitz-May-14-2024"]
[Site "Chess.com"]
[Date "2024.05.14"]
[Round "6"]
[White "LLRChess"]
[Black "Kombinator01"]
[Result "0-1"]
[WhiteElo "2522"]
[BlackElo "2385"]
[TimeControl "180+1"]
[EndTime "15:06:17 PDT"]
[Termination "Kombinator01 won on time"]

1. e4 {[%clk 0:03:00.9]} 1... c6 {[%clk 0:02:58.7]} 2. d4 {[%clk 0:02:59.7]}
2... d5 {[%clk 0:02:58.8]} 3. exd5 {[%clk 0:03:00.4]} 3... cxd5 {[%clk 0:02:59]}
4. Bd3 {[%clk 0:03:00.7]} 4... Nc6 {[%clk 0:02:58]} 5. c3 {[%clk 0:03:01.2]}
5... Qc7 {[%clk 0:02:57.3]} 6. Nf3 {[%clk 0:00:52.6]} 6... Nf6 {[%clk
0:02:50.9]} 7. O-O {[%clk 0:00:52.7]} 7... Bg4 {[%clk 0:02:50.1]} 8. h3 {[%clk
0:00:52.8]} 8... Bh5 {[%clk 0:02:49.7]} 9. Nbd2 {[%clk 0:00:51.5]} 9... e6
{[%clk 0:02:49.9]} 10. Re1 {[%clk 0:00:51.2]} 10... Bd6 {[%clk 0:02:49.5]} 11.
Be2 {[%clk 0:00:46.6]} 11... O-O {[%clk 0:02:48.8]} 12. Nf1 {[%clk 0:00:45.4]}
12... Rfe8 {[%clk 0:02:47.5]} 13. Bg5 {[%clk 0:00:41]} 13... Ne4 {[%clk
0:02:45.1]} 14. Bh4 {[%clk 0:00:41.2]} 14... a6 {[%clk 0:02:39.9]} 15. N3d2
{[%clk 0:00:36.2]} 15... Bxe2 {[%clk 0:02:34.1]} 16. Qxe2 {[%clk 0:00:35.7]}
16... Nxd2 {[%clk 0:02:29]} 17. Nxd2 {[%clk 0:00:35]} 17... b5 {[%clk
0:02:27.4]} 18. b4 {[%clk 0:00:30.6]} 18... Ne7 {[%clk 0:02:24]} 19. a4 {[%clk
0:00:27.6]} 19... Qxc3 {[%clk 0:02:21.1]} 20. axb5 {[%clk 0:00:25.8]} 20... axb5
{[%clk 0:02:21]} 21. Bxe7 {[%clk 0:00:20.3]} 21... Bxe7 {[%clk 0:02:15.6]} 22.
Rac1 {[%clk 0:00:12.9]} 22... Qxb4 {[%clk 0:02:14.6]} 23. Nf3 {[%clk 0:00:12.9]}
23... Bf6 {[%clk 0:02:13.4]} 24. Rb1 {[%clk 0:00:13.1]} 24... Qc4 {[%clk
0:02:10.9]} 25. Qe3 {[%clk 0:00:13.6]} 25... b4 {[%clk 0:02:08.8]} 26. Rec1
{[%clk 0:00:13.6]} 26... Qb5 {[%clk 0:02:05.8]} 27. Rc5 {[%clk 0:00:13.6]} 27...
Qb6 {[%clk 0:02:05.9]} 28. Ne1 {[%clk 0:00:11.6]} 28... Rec8 {[%clk 0:02:03.5]}
29. Nd3 {[%clk 0:00:11.6]} 29... Rxc5 {[%clk 0:01:55.5]} 30. dxc5 {[%clk
0:00:11.9]} 30... Qb5 {[%clk 0:01:51.7]} 31. Rxb4 {[%clk 0:00:12]} 31... Qa6
{[%clk 0:01:47.4]} 32. Qf4 {[%clk 0:00:10.6]} 32... h6 {[%clk 0:01:42.3]} 33.
Rb3 {[%clk 0:00:09.3]} 33... Qc4 {[%clk 0:01:40.8]} 34. Rb8+ {[%clk 0:00:07.5]}
34... Rxb8 {[%clk 0:01:38.1]} 35. Qxb8+ {[%clk 0:00:08.4]} 35... Kh7 {[%clk
0:01:38.7]} 36. Qb1 {[%clk 0:00:09.1]} 36... g6 {[%clk 0:01:34.8]} 37. g3 {[%clk
0:00:08.6]} 37... Bd4 {[%clk 0:01:34.7]} 38. Qb7 {[%clk 0:00:08]} 38... Kg7
{[%clk 0:01:30.2]} 39. Qb1 {[%clk 0:00:05.4]} 39... Bxc5 {[%clk 0:01:29.5]} 40.
Qb2+ {[%clk 0:00:05.8]} 40... Bd4 {[%clk 0:01:29.2]} 41. Qe2 {[%clk 0:00:06.1]}
41... Bf6 {[%clk 0:01:26.5]} 42. Kh2 {[%clk 0:00:04.8]} 42... e5 {[%clk
0:01:25.7]} 43. Qd2 {[%clk 0:00:04.9]} 43... d4 {[%clk 0:01:21.8]} 44. Nb2
{[%clk 0:00:04.4]} 44... Qc3 {[%clk 0:01:21.2]} 45. Qe2 {[%clk 0:00:04.9]} 45...
e4 {[%clk 0:01:19.2]} 46. Nd1 {[%clk 0:00:05.2]} 46... Qc6 {[%clk 0:01:16.5]}
47. h4 {[%clk 0:00:03.7]} 47... d3 {[%clk 0:01:14.6]} 48. Qe1 {[%clk 0:00:02.9]}
48... Qc2 {[%clk 0:01:12.5]} 49. Ne3 {[%clk 0:00:02.5]} 49... Qe2 {[%clk
0:01:12.1]} 50. Qg1 {[%clk 0:00:01.9]} 50... Bd4 {[%clk 0:01:11.4]} 51. Nd1
{[%clk 0:00:00.6]} 51... d2 {[%clk 0:01:09.4]} 52. Kg2 {[%clk 0:00:01.1]} 52...
e3 {[%clk 0:01:07.9]} 0-1

[Event "Late-Titled-Tuesday-Blitz-May-14-2024"]
[Site "Chess.com"]
[Date "2024.05.14"]
[Round "6"]
[White "Dhaydon19"]
[Black "GMMikhailKazakov"]
[Result "1-0"]
[WhiteElo "2727"]
[BlackElo "2515"]
[TimeControl "180+1"]
[EndTime "15:06:20 PDT"]
[Termination "Dhaydon19 won on time"]

1. c4 {[%clk 0:03:00.9]} 1... c6 {[%clk 0:02:55]} 2. d4 {[%clk 0:02:59.6]} 2...
d5 {[%clk 0:02:54.3]} 3. cxd5 {[%clk 0:02:58.5]} 3... cxd5 {[%clk 0:02:54.2]} 4.
Nc3 {[%clk 0:02:59.1]} 4... Nf6 {[%clk 0:02:54.3]} 5. Nf3 {[%clk 0:02:59.4]}
5... Nc6 {[%clk 0:02:54.4]} 6. Bf4 {[%clk 0:03:00.1]} 6... e6 {[%clk 0:02:52.5]}
7. e3 {[%clk 0:03:00.6]} 7... a6 {[%clk 0:02:51.7]} 8. Bd3 {[%clk 0:02:58.7]}
8... Be7 {[%clk 0:02:51.1]} 9. O-O {[%clk 0:02:57.6]} 9... Bd7 {[%clk 0:02:51]}
10. Rc1 {[%clk 0:02:55.8]} 10... O-O {[%clk 0:02:49.9]} 11. Na4 {[%clk
0:02:53.2]} 11... Ne4 {[%clk 0:02:31.4]} 12. Bxe4 {[%clk 0:02:50.2]} 12... dxe4
{[%clk 0:02:31]} 13. Nd2 {[%clk 0:02:50.9]} 13... f5 {[%clk 0:02:20.2]} 14. Nc5
{[%clk 0:02:48.1]} 14... Bc8 {[%clk 0:02:07]} 15. Nc4 {[%clk 0:02:44.2]} 15...
Nb4 {[%clk 0:01:51.6]} 16. a3 {[%clk 0:02:37.8]} 16... Nd5 {[%clk 0:01:51.3]}
17. Be5 {[%clk 0:02:35.5]} 17... b6 {[%clk 0:01:50.1]} 18. Nb3 {[%clk
0:02:31.6]} 18... Bd7 {[%clk 0:01:47.9]} 19. Nbd2 {[%clk 0:02:25.6]} 19... Rc8
{[%clk 0:01:34.7]} 20. Re1 {[%clk 0:02:21.9]} 20... Bb5 {[%clk 0:01:31.6]} 21.
b3 {[%clk 0:02:08.7]} 21... a5 {[%clk 0:01:17.1]} 22. f3 {[%clk 0:02:01.8]}
22... exf3 {[%clk 0:01:13.9]} 23. Qxf3 {[%clk 0:02:01]} 23... a4 {[%clk
0:01:02.8]} 24. bxa4 {[%clk 0:01:56.6]} 24... Bxa4 {[%clk 0:01:01.4]} 25. e4
{[%clk 0:01:47.4]} 25... fxe4 {[%clk 0:00:51.1]} 26. Qg4 {[%clk 0:01:46.7]}
26... Bf6 {[%clk 0:00:36.8]} 27. Qxe6+ {[%clk 0:01:44.5]} 27... Kh8 {[%clk
0:00:36.6]} 28. Nd6 {[%clk 0:01:44.8]} 28... Rxc1 {[%clk 0:00:27.9]} 29. Rxc1
{[%clk 0:01:42.9]} 29... Bxe5 {[%clk 0:00:11.2]} 30. dxe5 {[%clk 0:01:37.9]}
30... Nf4 {[%clk 0:00:11]} 31. Qc4 {[%clk 0:01:19.7]} 31... e3 {[%clk
0:00:08.3]} 32. N2e4 {[%clk 0:01:18.5]} 32... b5 {[%clk 0:00:08.3]} 33. Qa2
{[%clk 0:01:14.2]} 33... e2 {[%clk 0:00:07.3]} 34. Ng5 {[%clk 0:01:06.1]} 34...
Qb6+ {[%clk 0:00:05.3]} 35. Kh1 {[%clk 0:01:04.2]} 35... e1=Q+ {[%clk
0:00:01.4]} 36. Rxe1 {[%clk 0:01:01.5]} 36... h6 {[%clk 0:00:01.8]} 37. Ndf7+
{[%clk 0:00:58.8]} 37... Rxf7 {[%clk 0:00:02.3]} 38. Nxf7+ {[%clk 0:00:58.1]}
38... Kh7 {[%clk 0:00:02.8]} 39. Qb1+ {[%clk 0:00:55.7]} 39... g6 {[%clk
0:00:03.2]} 40. Qc1 {[%clk 0:00:55.5]} 40... Qd4 {[%clk 0:00:02.3]} 41. Nd6
{[%clk 0:00:52.7]} 41... Nd3 {[%clk 0:00:02.2]} 42. Qc7+ {[%clk 0:00:51.3]}
42... Kg8 {[%clk 0:00:02.5]} 43. Qd8+ {[%clk 0:00:49.5]} 43... Kh7 {[%clk
0:00:03]} 44. Qe7+ {[%clk 0:00:49]} 44... Kg8 {[%clk 0:00:03.4]} 45. Qf7+ {[%clk
0:00:48.7]} 45... Kh8 {[%clk 0:00:03.9]} 46. Rf1 {[%clk 0:00:46.1]} 46... Nxe5
{[%clk 0:00:03.4]} 47. Qf6+ {[%clk 0:00:45.5]} 47... Kh7 {[%clk 0:00:03]} 48.
Qe7+ {[%clk 0:00:43.3]} 1-0